bitfinex-derivatives/quotes_ETHF0:USTF0_20240922
["timestamp","ask_amount","ask_price","bid_price","bid_amount"]
[1727019381568,0.38847,2574.1,2574.0,0.99376565]
[1727019381770,0.38847,2574.1,2574.0,2.00218707]
[1727019382076,1.16726,2574.2,2574.0,2.00218904]
[1727019382263,1.16726,2574.2,2574.0,1.00842142]
[1727019382471,1.16726,2574.2,2574.1,0.38846]
[1727019385872,1.16726,2574.2,2574.1,0.99379396]
[1727019386371,1.16726,2574.2,2574.1,2.00221538]
[1727019388275,1.16726,2574.2,2574.1,2.00218714]
[1727019388668,0.3754,2574.2,2574.1,2.00218714]
[1727019388878,0.38836,2574.8,2574.2,0.97112]
[1727019389182,0.3758,2574.9,2574.8,0.38836]
[1727019389474,0.38,2575.0,2574.9,0.38834]
[1727019389681,0.38,2575.0,2574.9,0.99283279]
[1727019389973,0.38,2575.0,2574.9,0.60449279]
[1727019390179,0.38,2575.0,2574.8,1.771553]
[1727019390478,0.38,2575.0,2574.8,0.7603]
[1727019390672,0.76834,2575.0,2574.8,0.3938]
[1727019391075,0.38,2575.0,2574.8,0.78215]
[1727019391269,0.76833,2575.0,2574.8,0.78215]
[1727019392478,0.38,2575.0,2574.8,0.3938]
[1727019392683,0.76834,2575.0,2574.8,0.78216]
[1727019392977,0.76834,2575.0,2574.5,1.382053]
[1727019392978,0.97086,2574.9,2574.5,1.382053]
[1727019393184,0.7508,2574.8,2574.4,0.3979]
[1727019393382,0.38842,2574.4,2574.2,4.012593]
[1727019393576,0.375,2574.3,2574.2,1.1358]
[1727019393769,0.375,2574.3,2574.2,1.52425]
[1727019394175,0.7405,2574.3,2574.2,1.52425]
[1727019394377,0.7405,2574.3,2574.2,1.15715]
[1727019394576,0.7405,2574.3,2574.2,0.7687]
[1727019394777,0.7405,2574.3,2574.2,1.15715]
[1727019397384,1.12893,2574.3,2574.2,0.7687]
[1727019397780,0.7405,2574.3,2574.2,1.15715]
[1727019399283,1.12893,2574.3,2574.2,0.7687]
[1727019399975,1.12893,2574.3,2574.2,1.15715]
[1727019400379,1.12893,2574.3,2574.2,0.7687]
[1727019400581,0.38846,2574.1,2574.0,1.011253]
[1727019400892,0.38848,2574.0,2573.9,3.41249]
[1727019401186,0.38848,2574.0,2573.9,0.379]
[1727019406990,0.38849,2573.9,2573.8,0.3985]
[1727019407179,1.17799,2573.9,2573.8,0.78701]
[1727019407684,0.7895,2573.9,2573.8,0.78701]
[1727019408694,0.3843,2573.9,2573.8,0.78701]
[1727019410388,0.3843,2573.9,2573.8,1.39102824]
[1727019411090,0.3843,2573.9,2573.8,1.39107434]
[1727019411388,0.3843,2573.9,2573.8,0.78701]
[1727019411591,0.3843,2573.9,2573.8,1.3910803]
[1727019411995,0.3843,2573.9,2573.8,0.78701]
[1727019412393,0.77279,2573.9,2573.8,2.18701]
[1727019412592,0.77279,2573.9,2573.8,0.3985]
[1727019412794,0.77279,2573.9,2573.8,0.78701]
[1727019412992,0.38851,2573.8,2573.7,1.377853]
[1727019413297,0.38851,2573.8,2573.5,0.3996]
[1727019413595,0.38854,2573.6,2573.5,0.3996]
[1727019413796,1.14893,2573.7,2573.5,0.78815]
[1727019415300,0.75753,2573.7,2573.6,0.38854]
[1727019415592,0.3843,2573.9,2573.6,0.38854]
[1727019415593,0.38852,2573.8,2573.6,0.38854]
[1727019415794,0.38852,2573.7,2573.6,0.38854]
[1727019415995,0.38852,2573.7,2573.5,1.799393]
[1727019416391,0.38852,2573.7,2573.5,0.78814]
[1727019416993,0.38852,2573.7,2573.6,0.38854]
[1727019417195,0.38852,2573.7,2573.5,0.78814]
[1727019418398,0.38852,2573.7,2573.6,0.38854]
[1727019418600,0.38854,2573.6,2573.5,0.78814]
[1727019420200,0.38854,2573.6,2573.5,0.3996]
[1727019420400,0.38857,2573.4,2573.3,1.011253]
[1727019420604,0.38858,2573.4,2573.2,0.38859]
[1727019420805,0.77238,2573.3,2573.1,2.191053]
[1727019421008,0.3886,2573.2,2573.1,0.7912]
[1727019421303,0.3886,2573.2,2572.8,0.60109166]
[1727019421304,3.59641,2573.2,2572.8,0.60109166]
[1727019421504,0.3784,2573.1,2573.0,0.38863]
[1727019422103,0.3784,2573.1,2572.9,1.16284]
[1727019422104,0.76702,2573.1,2572.9,1.16284]
[1727019422306,0.3784,2573.1,2572.9,1.16284]
[1727019422605,0.3784,2573.1,2573.0,0.38863]
[1727019423197,3.2078,2573.2,2573.1,0.38861]
[1727019423397,3.2078,2573.2,2573.1,3.41861]
[1727019423804,0.3865,2573.5,2573.1,6.9164]
[1727019424101,0.3865,2573.5,2573.3,0.38857]
[1727019424302,0.3865,2573.5,2573.4,0.3689]
[1727019424605,0.3865,2573.5,2573.4,0.7626]
[1727019425606,0.77505,2573.5,2573.4,0.7626]
[1727019426305,0.3865,2573.5,2573.1,0.3886]
[1727019426498,0.3865,2573.5,2573.1,0.3876]
[1727019426499,0.3743,2573.4,2573.1,0.3876]
[1727019426700,0.3776,2573.3,2573.1,0.3876]
[1727019427506,0.3886,2573.2,2573.1,0.3876]
[1727019430709,0.38862,2573.1,2572.9,1.13844]
[1727019430902,0.75802,2573.1,2572.9,1.13844]
[1727019431109,0.38863,2573.0,2572.9,0.7498]
[1727019431306,0.75802,2573.1,2572.9,1.13844]
[1727019434010,0.3694,2573.1,2573.0,0.38863]
[1727019434319,0.75801,2573.1,2572.9,1.13843]
[1727019434504,0.3694,2573.1,2572.9,1.13843]
[1727019434708,0.75802,2573.1,2572.9,1.13843]
[1727019436720,0.7681,2573.3,2573.0,0.38863]
[1727019436923,0.3886,2573.2,2572.9,4.16843]
[1727019437418,0.38861,2573.1,2572.9,4.16843]
[1727019439316,0.38861,2573.1,2572.9,3.7798]
[1727019439520,0.38861,2573.1,2572.9,4.16844]
[1727019440408,0.38862,2573.1,2572.9,3.7798]
[1727019440813,0.38862,2573.1,2572.9,0.7498]
[1727019441414,1.73959,2573.3,2572.9,0.7498]
[1727019441716,0.38862,2573.1,2572.9,0.7498]
[1727019442822,0.38863,2573.0,2572.9,0.7498]
[1727019444719,0.38863,2573.0,2572.9,0.3819]
[1727019456324,0.77853,2573.0,2572.9,0.3819]
[1727019461725,3.2078,2573.6,2573.3,0.38858]
[1727019461924,0.38855,2573.5,2573.4,2.1607]
[1727019462118,3.59634,2573.6,2573.4,2.92646]
[1727019462524,3.59634,2573.6,2573.4,3.93797532]
[1727019462820,3.59634,2573.6,2573.5,0.60521258]
[1727019463325,3.59634,2573.6,2573.5,0.60529713]
[1727019464321,3.59634,2573.6,2573.4,3.93797532]
[1727019464527,0.38854,2573.6,2573.4,3.93797532]
[1727019464718,3.59635,2573.6,2573.4,3.93797532]
[1727019465121,0.38855,2573.5,2573.4,3.93797532]
[1727019465421,3.59634,2573.6,2573.4,4.54312526]
[1727019465617,3.59634,2573.6,2573.4,3.93797532]
[1727019466841,0.38855,2573.5,2573.4,3.93797532]
[1727019467028,0.38855,2573.5,2573.4,4.15448981]
[1727019467535,0.38855,2573.5,2573.4,1.36577449]
[1727019467728,0.38855,2573.5,2573.4,0.7607]
[1727019467936,0.38855,2573.5,2573.4,2.37726924]
[1727019468447,0.38855,2573.5,2573.4,1.36570024]
[1727019468645,0.38855,2573.5,2573.4,0.7607]
[1727019468846,0.38855,2573.5,2573.4,1.36557007]
[1727019469345,0.38855,2573.5,2573.4,0.7607]
[1727019469950,0.38855,2573.5,2573.4,1.36535659]
[1727019470247,0.38855,2573.5,2573.4,0.7607]
[1727019471943,0.38855,2573.5,2573.4,1.36533777]
[1727019472248,0.38855,2573.5,2573.4,0.7607]
[1727019477649,0.97135,2573.6,2573.2,2.41151532]
[1727019477843,0.38857,2573.4,2573.3,0.74]
[1727019479357,0.7748,2573.7,2573.3,2.14]
[1727019479552,0.38856,2573.5,2573.3,2.52858]
[1727019481751,3.55709537,2574.6,2573.4,6.5036]
[1727019481963,3.2078,2574.3,2574.0,1.4]
[1727019482260,3.2078,2574.3,2574.1,0.8057]
[1727019482648,0.77282,2574.4,2574.2,0.38844]
[1727019482844,0.3844,2574.4,2574.3,0.38843]
[1727019483047,0.38838,2574.7,2574.3,5.6853]
[1727019483256,3.9763,2574.8,2574.6,1.4]
[1727019483456,0.7685,2574.8,2574.7,0.38837]
[1727019483949,1.15686,2574.8,2574.6,1.78838]
[1727019484143,0.7685,2574.8,2574.7,0.38837]
[1727019484345,0.7685,2574.8,2574.6,1.78838]
[1727019486147,0.7685,2574.8,2574.7,0.38837]
[1727019486358,0.7685,2574.8,2574.6,0.38838]
[1727019487154,0.7685,2574.8,2574.6,0.77768]
[1727019488455,1.15687,2574.8,2574.6,0.77768]
[1727019488763,0.7685,2574.8,2574.6,0.77768]
[1727019489060,1.15686,2574.8,2574.6,0.77768]
[1727019489664,1.15686,2574.8,2574.6,0.3893]
[1727019489852,1.15686,2574.8,2574.6,0.77768]
[1727019490756,0.7685,2574.8,2574.6,0.77768]
[1727019491747,1.15686,2574.8,2574.6,0.77768]
[1727019492254,1.15686,2574.8,2574.6,0.3893]
[1727019492565,0.7685,2574.8,2574.4,5.8258]
[1727019492755,0.3884,2574.5,2574.4,3.2078]
[1727019492951,0.7685,2574.8,2574.4,3.2078]
[1727019493152,1.1678,2574.8,2574.4,3.2078]
[1727019493458,0.3884,2574.5,2574.4,3.2078]
[1727019493654,0.3884,2574.5,2574.3,3.40592]
[1727019495553,0.3884,2574.5,2574.3,6.43592]
[1727019496656,0.38839,2574.6,2574.3,6.43592]
[1727019497658,0.3884,2574.5,2574.3,6.43592]
[1727019502161,0.75752,2574.4,2574.3,0.4005]
[1727019502364,0.38843,2574.3,2574.2,0.4003]
[1727019502563,0.38843,2574.3,2573.9,6.62628]
[1727019502564,0.38847,2574.1,2573.9,6.62628]
[1727019502759,0.38848,2574.0,2573.9,6.2378]
[1727019503067,0.38849,2573.9,2573.8,0.4047]
[1727019503460,0.38849,2573.9,2573.7,6.41571]
[1727019504357,0.38849,2573.9,2573.7,3.79871]
[1727019505666,0.79309,2574.0,2573.8,0.38851]
[1727019506160,0.4046,2574.0,2573.9,3.41849]
[1727019506359,0.38845,2574.2,2573.9,6.2378]
[1727019506667,0.38845,2574.2,2574.1,3.03]
[1727019506863,0.38846,2574.1,2574.0,0.3954]
[1727019507167,0.38848,2574.0,2573.9,3.03]
[1727019508668,0.38847,2574.1,2573.9,7.30329]
[1727019508864,0.38847,2574.1,2574.0,0.38848]
[1727019511761,0.38847,2574.1,2573.9,3.41848]
[1727019512264,0.38847,2574.1,2574.0,1.4]
[1727019513161,0.38847,2574.1,2574.0,1.78848]
[1727019513470,0.38845,2574.2,2574.0,1.78848]
[1727019514471,0.38846,2574.1,2574.0,1.78848]
[1727019519169,0.3918,2574.3,2574.1,0.38846]
[1727019519374,0.78024,2574.3,2574.2,2.1643]
[1727019519570,3.5813,2574.5,2574.2,2.1643]
[1727019519767,3.96971,2574.5,2574.4,1.4]
[1727019520968,0.38842,2574.4,2574.3,1.4]
[1727019521167,0.38843,2574.3,2574.2,0.7643]
[1727019521373,0.77303,2574.3,2574.2,0.3902]
[1727019521879,0.77303,2574.3,2573.8,1.01151532]
[1727019521880,0.97119,2574.1,2573.6,0.38853]
[1727019522067,0.7658,2574.0,2573.6,0.38853]
[1727019522371,0.7658,2574.0,2573.5,2.1831]
[1727019522372,0.38852,2573.7,2573.5,2.1831]
[1727019522974,0.38852,2573.7,2573.5,2.57164]
[1727019524380,0.38852,2573.7,2573.5,4.20164]
[1727019525977,0.38852,2573.8,2573.5,4.20164]
[1727019526167,0.7658,2574.0,2573.5,1.17164]
[1727019526365,0.38851,2573.8,2573.6,0.38853]
[1727019527880,0.38851,2573.8,2573.5,4.20164]
[1727019528968,0.38854,2573.6,2573.5,0.4021]
[1727019529173,3.6114,2573.9,2573.3,3.608]
[1727019529174,0.38857,2573.4,2573.3,3.608]
[1727019529369,0.97131,2573.7,2573.3,3.2078]
[1727019529370,1.56946,2573.5,2573.3,3.2078]
[1727019529567,1.1809,2573.5,2573.2,2.645]
[1727019529772,0.38857,2573.4,2573.2,3.03359]
[1727019530780,1.56946,2573.5,2573.2,2.645]
[1727019531078,1.56946,2573.5,2573.2,3.03359]
[1727019531079,0.38857,2573.4,2573.2,3.03359]
[1727019533276,1.56946,2573.5,2573.2,3.03359]
[1727019533874,1.1809,2573.5,2573.1,3.4268]
[1727019534074,0.38858,2573.4,2573.2,0.3886]
[1727019534382,0.38858,2573.4,2573.1,4.1817]
[1727019535178,1.1809,2573.5,2573.1,4.1817]
[1727019535479,0.38858,2573.4,2573.1,4.1817]
[1727019538782,0.38858,2573.4,2573.2,0.3886]
[1727019540378,1.56946,2573.5,2573.3,0.38858]
[1727019540578,0.38854,2573.6,2573.4,0.38857]
[1727019540779,0.38854,2573.6,2573.5,3.4344]
[1727019540978,0.38854,2573.6,2573.5,3.8195]
[1727019541880,0.38852,2573.7,2573.5,4.20805]
[1727019542477,0.38852,2573.7,2573.6,0.38854]
[1727019542683,0.38852,2573.7,2573.5,4.20805]
[1727019545283,0.38854,2573.6,2573.5,3.8195]
[1727019545482,0.38854,2573.6,2573.5,0.7895]
[1727019547289,0.38854,2573.6,2573.5,1.17805]
[1727019548379,0.7897,2573.8,2573.5,1.17805]
[1727019548676,0.38853,2573.7,2573.5,1.17805]
[1727019548881,0.7897,2573.8,2573.6,1.78853]
[1727019548882,1.17822,2573.8,2573.6,1.78853]
[1727019549184,0.38852,2573.8,2573.6,1.78853]
[1727019550184,0.38852,2573.7,2573.6,1.78853]
[1727019550379,0.38852,2573.8,2573.6,1.78854]
[1727019552383,0.38852,2573.7,2573.6,1.78854]
[1727019552786,0.38852,2573.7,2573.6,1.4]
[1727019558994,0.38852,2573.7,2573.6,1.78854]
[1727019559790,0.3885,2573.9,2573.7,0.38852]
[1727019559990,0.3885,2573.9,2573.8,1.4]
[1727019563995,0.3885,2573.9,2573.8,1.78851]
[1727019564505,1.14899,2574.0,2573.9,0.38849]
[1727019564691,0.38848,2574.0,2573.9,2.15468]
[1727019564892,0.777,2574.3,2573.9,4.1603392]
[1727019565093,0.38848,2574.0,2573.9,3.55571532]
[1727019565291,0.38848,2574.0,2573.9,4.64617313]
[1727019565606,0.38848,2574.0,2573.9,4.16035519]
[1727019565790,0.38848,2574.0,2573.9,2.36255519]
[1727019565994,0.38849,2573.9,2573.8,1.01151532]
[1727019566198,1.13229,2573.9,2573.8,2.10210418]
[1727019566606,0.7438,2573.9,2573.8,0.9932426]
[1727019566903,1.13229,2573.9,2573.8,2.00475792]
[1727019567294,1.13229,2573.9,2573.8,2.49060827]
[1727019569202,1.13229,2573.9,2573.8,1.61624792]
[1727019570303,1.13229,2573.9,2573.8,1.01151532]
[1727019570491,1.13229,2573.9,2573.8,1.61655096]
[1727019573697,1.13229,2573.9,2573.8,1.01151532]
[1727019574012,1.13229,2573.9,2573.8,1.6164684]
[1727019574696,1.13229,2573.9,2573.7,0.76871]
[1727019574697,0.38852,2573.7,2573.6,1.01151532]
[1727019574892,0.38854,2573.6,2573.5,1.01151532]
[1727019575199,0.38854,2573.6,2573.5,2.22398384]
[1727019575404,0.38854,2573.6,2573.5,2.70988991]
[1727019575598,0.38854,2573.6,2573.5,4.09101421]
[1727019576501,0.38854,2573.6,2573.5,2.70988991]
[1727019576903,0.38854,2573.6,2573.5,4.10988991]
[1727019578706,0.38854,2573.6,2573.5,4.10990282]
[1727019579108,0.38854,2573.6,2573.5,3.50250732]
[1727019579302,0.38854,2573.6,2573.5,4.10990532]
[1727019580211,0.38854,2573.6,2573.5,3.79278913]
[1727019580403,0.38854,2573.6,2573.5,3.38641238]
[1727019580607,0.38854,2573.6,2573.5,4.90368536]
[1727019580807,0.38854,2573.6,2573.5,3.99378482]
[1727019581008,0.38854,2573.6,2573.5,4.47968277]
[1727019581306,0.38853,2573.7,2573.5,4.86823277]
[1727019581507,0.38853,2573.7,2573.6,1.61695204]
[1727019583306,0.38853,2573.7,2573.6,1.01180681]
[1727019583507,0.38853,2573.7,2573.6,1.61713403]
[1727019583713,0.38853,2573.7,2573.6,1.01180681]
[1727019583912,0.38853,2573.7,2573.6,1.49770924]
[1727019584119,0.38853,2573.7,2573.6,2.10305416]
[1727019584507,0.38853,2573.7,2573.6,2.58896159]
[1727019584706,0.38853,2573.7,2573.6,4.5781166]
[1727019584907,0.38852,2573.8,2573.6,7.84064316]
[1727019585114,0.38852,2573.8,2573.7,2.71061787]
[1727019585509,0.38852,2573.8,2573.7,4.09240486]
[1727019585712,0.38852,2573.8,2573.7,2.71061787]
[1727019586008,0.38852,2573.8,2573.7,4.09253172]
[1727019586911,0.38852,2573.8,2573.7,4.09254224]
[1727019587119,0.38852,2573.8,2573.7,4.09254849]
[1727019587804,0.38852,2573.8,2573.7,5.60982755]
[1727019588009,0.38852,2573.8,2573.7,4.59770475]
[1727019588513,0.38852,2573.8,2573.7,2.47505617]
[1727019588717,0.38852,2573.8,2573.7,5.56626654]
[1727019589012,0.38852,2573.8,2573.7,5.56626343]
[1727019589216,0.38852,2573.8,2573.7,4.59769439]
[1727019589618,0.38852,2573.8,2573.7,3.08042141]
[1727019589816,0.38852,2573.8,2573.7,4.59769439]
[1727019590113,0.38852,2573.8,2573.7,5.5662645]
[1727019590312,0.38852,2573.8,2573.7,2.89909452]
[1727019590511,0.38852,2573.8,2573.7,4.11179783]
[1727019590707,0.38852,2573.8,2573.7,2.59452485]
[1727019591014,0.38852,2573.8,2573.7,3.08039198]
[1727019591417,0.38852,2573.8,2573.7,4.59766496]
[1727019592022,0.38852,2573.8,2573.7,4.59763202]
[1727019592215,0.38852,2573.8,2573.7,3.08035904]
[1727019592512,0.38852,2573.8,2573.7,4.59763202]
[1727019592721,0.38852,2573.8,2573.7,5.56622184]
[1727019592906,0.3885,2573.9,2573.7,5.95474184]
[1727019593107,4.57675,2574.2,2573.8,6.25205019]
[1727019593312,3.6056,2574.2,2574.1,1.4]
[1727019593711,3.99405,2574.2,2574.1,1.4]
[1727019594118,3.99405,2574.2,2574.1,3.01733021]
[1727019594325,0.78625,2574.2,2574.1,3.01733021]
[1727019594815,0.78625,2574.2,2574.1,2.00525094]
[1727019595021,0.78625,2574.2,2574.1,3.01733021]
[1727019595516,0.78625,2574.2,2574.1,0.60525094]
[1727019597116,0.78625,2574.2,2574.0,1.01207927]
[1727019597117,0.38846,2574.1,2574.0,1.01207927]
[1727019597507,0.38846,2574.1,2574.0,2.22436292]
[1727019597722,0.38846,2574.1,2574.0,1.6170792]
[1727019597921,0.38846,2574.1,2574.0,2.10290618]
[1727019598420,0.38846,2574.1,2574.0,2.71018317]
[1727019598812,0.38846,2574.1,2574.0,2.10290618]
[1727019600523,0.38846,2574.1,2574.0,2.71018357]
[1727019600815,0.38846,2574.1,2574.0,1.49790625]
[1727019601008,0.38846,2574.1,2574.0,2.71008589]
[1727019601207,0.38846,2574.1,2574.0,2.10281202]
[1727019601614,0.38846,2574.1,2574.0,2.71008259]
[1727019603320,0.38846,2574.1,2574.0,2.10281202]
[1727019605031,0.38849,2573.9,2573.8,3.55577927]
[1727019605322,0.38849,2574.0,2573.8,4.93650502]
[1727019605521,0.38849,2574.0,2573.8,3.55577927]
[1727019605716,0.38849,2574.0,2573.9,0.60494038]
[1727019606021,0.38849,2574.0,2573.9,1.61701965]
[1727019606518,0.38849,2574.0,2573.9,1.40056927]
[1727019606917,0.38849,2574.0,2573.9,2.78114254]
[1727019607120,0.38849,2574.0,2573.9,2.98121068]
[1727019607623,0.38849,2574.0,2573.9,3.46703354]
[1727019608215,0.38849,2574.0,2573.9,2.25488613]
[1727019608521,0.38849,2574.0,2573.9,4.96394589]
[1727019609225,0.38849,2574.0,2573.9,3.95282804]
[1727019609422,0.38847,2574.1,2573.9,3.93333804]
[1727019609724,0.38847,2574.1,2574.0,3.01590673]
[1727019613316,0.38847,2574.1,2574.0,2.0048411]
[1727019613516,0.38847,2574.1,2574.0,2.00473972]
[1727019613712,0.38847,2574.1,2574.0,3.01580535]
[1727019614125,0.38847,2574.1,2574.0,1.4]
[1727019615127,0.3978,2574.2,2573.9,1.49688849]
[1727019615128,0.38848,2574.0,2573.9,1.49688849]
[1727019615324,1.76178,2574.0,2573.9,0.48582286]
[1727019618426,0.38854,2573.6,2573.5,1.39886563]
[1727019618636,0.38854,2573.6,2573.5,2.00350661]
[1727019619534,0.38854,2573.6,2573.5,2.39205661]
[1727019619834,0.38853,2573.7,2573.5,2.39205661]
[1727019620031,0.38853,2573.7,2573.6,1.78854]
[1727019621135,0.38853,2573.7,2573.6,1.4]
[1727019621641,0.38854,2573.6,2573.5,1.39886563]
[1727019621834,0.38857,2573.4,2573.3,4.61206563]
[1727019622132,0.38857,2573.4,2573.3,5.21656937]
[1727019622734,0.38857,2573.4,2573.3,2.00876937]
[1727019623529,0.75817,2573.4,2573.3,2.00876937]
[1727019623727,0.75817,2573.4,2573.3,1.40426563]
[1727019624029,0.75817,2573.4,2573.3,2.00869903]
[1727019624220,0.75817,2573.4,2573.3,0.3932]
[1727019624424,0.75817,2573.4,2573.3,1.7932]
[1727019627133,0.38858,2573.3,2573.2,2.79036563]
[1727019627340,0.38861,2573.1,2573.0,4.60396563]
[1727019627636,0.38861,2573.1,2573.0,3.5929]
[1727019628337,0.38861,2573.2,2573.0,3.5929]
[1727019629230,0.38861,2573.1,2573.0,3.5929]
[1727019630036,0.38861,2573.2,2573.0,3.98153]
[1727019630331,0.38861,2573.2,2573.1,1.4]
[1727019635546,0.38861,2573.2,2573.0,0.3851]
[1727019635547,0.38861,2573.1,2573.0,0.3851]
[1727019635841,3.99131,2573.1,2573.0,0.3851]
[1727019636035,4.38001,2573.1,2573.0,0.3851]
[1727019636443,1.17221,2573.1,2573.0,1.7851]
[1727019638439,0.38863,2573.0,2572.9,0.4028]
[1727019662164,0.38862,2573.1,2572.9,0.79144]
[1727019662468,0.38862,2573.1,2573.0,1.7778]
[1727019663155,3.6026,2573.5,2573.0,21.51931113]
[1727019663156,3.2078,2573.5,2573.0,21.51931113]
[1727019663362,3.59635,2573.5,2573.4,1.4]
[1727019663767,3.59635,2573.5,2573.4,2.5514]
[1727019665165,0.38855,2573.5,2573.4,4.16218471]
[1727019665363,0.38855,2573.5,2573.4,3.15126396]
[1727019665658,0.38855,2573.5,2573.4,2.5514]
[1727019666974,0.38855,2573.5,2573.4,3.15135244]
[1727019667159,0.38851,2573.8,2573.5,0.38855]
[1727019667465,0.7664,2573.9,2573.5,0.38855]
[1727019667466,1.1549,2573.9,2573.7,1.4]
[1727019667671,1.1549,2573.9,2573.8,0.7931]
[1727019668067,3.59629,2574.0,2573.8,0.7931]
[1727019668368,3.59629,2574.0,2573.9,0.3958]
[1727019669568,0.38849,2573.9,2573.8,0.7931]
[1727019671275,3.59628,2574.0,2573.8,4.6787]
[1727019671470,3.59628,2574.0,2573.9,1.4]
[1727019672267,0.38848,2574.0,2573.9,1.4]
[1727019672969,0.38849,2573.9,2573.8,0.7931]
[1727019675466,0.38851,2573.8,2573.7,1.4]
[1727019675666,0.75911,2573.8,2573.7,1.4]
[1727019677372,0.38852,2573.7,2573.6,0.3788]
[1727019677571,0.77242,2573.7,2573.6,0.3788]
[1727019677765,1.16552,2573.7,2573.6,0.3788]
[1727019678077,0.777,2573.7,2573.3,4.76517]
[1727019678278,0.38856,2573.5,2573.3,5.15367]
[1727019678681,0.3668,2573.4,2573.3,5.15367]
[1727019679772,0.38855,2573.6,2573.4,0.38856]
[1727019679973,0.77495,2573.6,2573.4,0.38856]
[1727019682270,0.38857,2573.4,2573.3,2.1551]
[1727019682472,0.38857,2573.4,2573.3,0.3885]
[1727019682677,0.3886,2573.2,2573.1,1.7742]
[1727019683079,0.3886,2573.2,2573.1,2.16281]
[1727019683884,0.38857,2573.4,2573.2,0.3886]
[1727019684085,0.7888,2573.6,2573.3,1.4]
[1727019684279,0.38857,2573.4,2573.3,1.78858]
[1727019684584,0.38856,2573.5,2573.3,1.4]
[1727019684780,0.38856,2573.5,2573.4,0.3674]
[1727019686588,0.38857,2573.4,2573.3,1.78858]
[1727019687191,0.38858,2573.3,2573.2,1.78859]
[1727019687383,0.7888,2573.6,2573.1,2.52941]
[1727019687384,0.97139,2573.5,2573.1,2.52941]
[1727019687579,0.38857,2573.4,2573.3,1.4]
[1727019692585,3.2078,2574.0,2573.7,0.38852]
[1727019692786,3.59628,2574.0,2573.9,1.4]
[1727019692994,3.2078,2574.0,2573.9,1.78849]
[1727019694385,3.59628,2574.0,2573.9,1.78849]
[1727019695194,3.2078,2574.0,2573.9,1.4]
[1727019695389,3.59628,2574.0,2573.9,1.4]
[1727019695596,3.59628,2574.0,2573.9,1.7878]
[1727019695787,3.2078,2574.0,2573.9,2.17629]
[1727019696703,3.2078,2574.0,2573.9,6.06109]
[1727019696894,1.18595,2574.2,2573.9,5.6726]
[1727019697095,1.18595,2574.2,2574.1,1.4]
[1727019697592,0.3921,2574.2,2574.1,1.78846]
[1727019699694,0.3921,2574.2,2574.1,1.4]
[1727019699695,0.78055,2574.2,2574.1,1.4]
[1727019704212,0.38848,2574.0,2573.9,0.3878]
[1727019704495,4.2769,2574.2,2573.9,0.3878]
[1727019704496,1.16857,2574.1,2573.9,0.3878]
[1727019705294,0.38848,2574.0,2573.9,0.3878]
[1727019706295,8.4926,2574.0,2573.6,3.61892075]
[1727019706499,8.4926,2574.0,2573.5,3.39227298]
[1727019706500,0.97124,2573.9,2573.5,2.2428]
[1727019706710,0.38853,2573.7,2573.6,1.4]
[1727019717510,9.257,2573.7,2573.2,1.01092075]
[1727019717813,0.38858,2573.3,2573.2,1.01092075]
[1727019718005,0.38858,2573.4,2573.2,1.7886]
[1727019718416,0.3796,2573.3,2573.2,1.7886]
[1727019719510,0.76818,2573.3,2573.2,1.4]
[1727019720412,0.3796,2573.3,2573.2,1.7886]
[1727019722818,0.7809,2573.3,2573.2,1.7886]
[1727019723013,1.16948,2573.3,2573.2,1.7886]
[1727019723617,0.7809,2573.3,2573.2,1.7886]
[1727019725914,3.5806,2573.7,2573.5,0.38854]
[1727019725915,3.2078,2573.7,2573.5,0.38854]
[1727019726118,3.59632,2573.7,2573.6,2.1557]
[1727019726512,3.2078,2573.7,2573.6,2.1557]
[1727019726916,3.59632,2573.7,2573.6,2.1557]
[1727019727115,3.2078,2573.7,2573.6,2.1557]
[1727019727423,0.75602,2573.8,2573.6,2.1557]
[1727019728117,0.3819,2573.9,2573.7,0.38852]
[1727019728316,0.77039,2573.9,2573.8,1.4]
[1727019728717,0.3819,2573.9,2573.8,1.4]
[1727019729920,0.77039,2573.9,2573.8,1.4]
[1727019732529,0.77039,2573.9,2573.7,1.4]
[1727019735931,0.38851,2573.8,2573.7,1.4]
[1727019738331,0.38851,2573.8,2573.7,1.78852]
[1727019741342,0.38851,2573.8,2573.7,1.4]
[1727019745942,0.7704,2573.9,2573.8,0.38851]
[1727019746143,0.7704,2573.9,2573.7,1.4]
[1727019746144,0.7704,2573.9,2573.7,1.78851]
[1727019746643,0.38851,2573.8,2573.7,1.78851]
[1727019747329,0.38851,2573.8,2573.7,2.79943075]
[1727019747528,0.38851,2573.8,2573.7,1.78851]
[1727019748141,0.38851,2573.8,2573.7,2.38751224]
[1727019748337,0.38851,2573.8,2573.7,3.39843299]
[1727019748844,0.38851,2573.8,2573.7,1.78851]
[1727019749344,0.38851,2573.8,2573.7,2.79943075]
[1727019749537,0.38851,2573.8,2573.7,1.78851]
[1727019750237,0.38851,2573.8,2573.7,3.39846715]
[1727019752143,0.38851,2573.8,2573.7,3.88434222]
[1727019754836,0.38851,2573.8,2573.7,4.49168718]
[1727019755033,0.3923,2574.0,2573.7,7.98877718]
[1727019755242,0.38843,2574.4,2573.9,4.6078]
[1727019755444,0.38843,2574.4,2574.3,1.4]
[1727019756248,0.38843,2574.4,2574.3,0.3819]
[1727019756738,0.38843,2574.3,2574.2,1.78844]
[1727019756939,0.38843,2574.3,2574.2,1.4]
[1727019757547,8.4926,2574.3,2574.0,1.40312075]
[1727019757746,0.38849,2573.9,2573.8,1.01092075]
[1727019757943,0.38851,2573.8,2573.7,1.875]